bitfinex-derivatives/quotes_SOLF0:USTF0_20250911
["timestamp","ask_amount","ask_price","bid_price","bid_amount"]
[1757627195095,7.03,226.64,226.54,7.19]
[1757627195295,3.01966448,226.63,226.54,7.19]
[1757627195498,3.01966448,226.62,226.54,7.19]
[1757627195801,7.03,226.64,226.54,7.19]
[1757627196001,3.01963296,226.63,226.54,7.19]
[1757627196197,7.03,226.64,226.54,7.19]
[1757627196496,3.01969943,226.63,226.54,7.19]
[1757627196697,7.03,226.64,226.54,7.19]
[1757627196899,3.01969943,226.63,226.54,7.19]
[1757627197098,7.03,226.64,226.54,7.19]
[1757627197300,3.01984727,226.63,226.54,7.19]
[1757627197499,7.03,226.64,226.54,7.19]
[1757627197700,3.01982091,226.63,226.54,7.19]
[1757627197903,7.03,226.64,226.54,7.19]
[1757627198104,3.01982132,226.63,226.54,7.19]
[1757627198305,7.03,226.64,226.54,7.19]
[1757627198502,3.02000404,226.63,226.54,7.19]
[1757627198805,7.03,226.64,226.54,7.19]
[1757627199005,3.02000335,226.63,226.54,7.19]
[1757627199201,7.03,226.64,226.54,7.19]
[1757627199500,3.02024729,226.63,226.54,7.19]
[1757627199701,7.03,226.64,226.54,7.19]
[1757627201097,3.43401274,226.71,226.54,7.19]
[1757627201302,13.36553189,226.7,226.54,7.19]
[1757627201507,7.03,226.68,226.54,7.19]
[1757627201705,3.02092826,226.67,226.54,7.19]
[1757627201894,3.02092826,226.66,226.54,7.19]
[1757627202099,3.02092826,226.65,226.54,7.19]
[1757627202404,7.03,226.68,226.54,7.19]
[1757627202608,3.02093405,226.67,226.54,7.19]
[1757627202804,3.02093405,226.66,226.54,7.19]
[1757627203000,3.02093405,226.65,226.54,7.19]
[1757627203201,7.03,226.68,226.54,7.19]
[1757627203402,3.02092603,226.67,226.54,7.19]
[1757627203605,3.02092603,226.66,226.54,7.19]
[1757627203806,7.03,226.68,226.54,7.19]
[1757627204002,3.02092603,226.67,226.54,7.19]
[1757627204205,3.02092603,226.66,226.54,7.19]
[1757627204404,7.03,226.68,226.54,7.19]
[1757627204607,3.02310571,226.67,226.54,7.19]
[1757627204805,3.02310571,226.66,226.54,7.19]
[1757627205007,7.03,226.68,226.54,7.19]
[1757627205207,3.0231055,226.67,226.54,7.19]
[1757627205508,10.0531055,226.66,226.54,7.19]
[1757627205808,7.03,226.66,226.54,7.19]
[1757627208410,7.03,226.64,226.54,7.19]
[1757627209807,7.03,226.7,226.54,7.19]
[1757627209998,7.03,226.68,226.54,7.19]
[1757627210202,7.03,226.66,226.54,7.19]
[1757627211204,7.03,226.64,226.54,7.19]
[1757627216005,7.03,226.7,226.54,7.19]
[1757627216210,3.02835111,226.69,226.55,7.19]
[1757627216406,3.02835111,226.68,226.57,7.19]
[1757627216611,3.02835111,226.67,226.57,7.19]
[1757627216911,7.03,226.7,226.57,7.19]
[1757627217111,7.03,226.68,226.57,7.19]
[1757627217413,3.02973742,226.67,226.57,7.19]
[1757627217621,7.03,226.68,226.57,7.19]
[1757627217913,3.03012497,226.67,226.57,7.19]
[1757627218112,7.03,226.68,226.57,7.19]
[1757627218309,3.03060745,226.67,226.57,7.19]
[1757627218510,3.03060745,226.66,226.57,7.19]
[1757627218711,7.03,226.68,226.57,7.19]
[1757627218909,3.03060745,226.67,226.57,7.19]
[1757627219108,3.03060745,226.66,226.57,7.19]
[1757627219411,7.03,226.68,226.57,7.19]
[1757627219613,3.03112143,226.67,226.57,7.19]
[1757627219809,3.03112143,226.66,226.57,7.19]
[1757627220015,7.03,226.68,226.57,7.19]
[1757627220212,3.03112143,226.67,226.57,7.19]
[1757627220412,3.03112143,226.66,226.57,7.19]
[1757627220716,7.03,226.68,226.57,7.19]
[1757627221016,3.0317327,226.67,226.57,7.19]
[1757627221211,3.0317327,226.66,226.57,7.19]
[1757627221410,7.03,226.68,226.57,7.19]
[1757627221612,3.43401274,226.71,226.57,7.19]
[1757627221613,7.55,226.66,226.57,7.19]
[1757627224218,3.03372985,226.65,226.57,7.19]
[1757627224419,7.55,226.66,226.57,7.19]
[1757627226218,7.55,226.66,226.57,96.78]
[1757627226417,7.55,226.66,226.58,7.15]
[1757627230119,3.03280835,226.65,226.51,69.15]
[1757627230323,10.58280835,226.64,226.51,7.15]
[1757627230517,7.55,226.64,226.51,7.15]
[1757627233326,7.55,226.64,226.53,7.15]
[1757627233526,7.55,226.64,226.55,7.15]
[1757627234023,7.55,226.71,226.51,7.15]
[1757627234225,4.92885438,226.73,226.51,7.15]
[1757627234226,7.55,226.63,226.51,7.15]
[1757627234528,7.55,226.61,226.51,7.15]
[1757627235927,3.43401274,226.64,226.47,7.15]
[1757627235928,7.55,226.59,226.47,7.15]
[1757627236226,7.55,226.57,226.47,7.15]
[1757627237620,7.55,226.57,226.46,406.22]
[1757627237820,3.03319786,226.56,226.46,296.44]
[1757627238027,7.55,226.59,226.46,296.44]
[1757627238223,3.03319828,226.58,226.46,296.44]
[1757627238426,3.03319828,226.57,226.46,296.44]
[1757627238626,7.55,226.55,226.46,296.44]
[1757627238823,3.43401274,226.6,226.46,296.44]
[1757627239022,7.55,226.58,226.46,296.44]
[1757627239222,6.36337329,226.57,226.44,109.74]
[1757627239426,3.03219788,226.56,226.44,109.74]
[1757627239624,3.03219788,226.56,226.43,7.15]
[1757627239625,7.55,226.54,226.43,7.15]
[1757627242528,7.55,226.55,226.42,109.76]
[1757627242723,3.43401274,226.56,226.42,109.76]
[1757627242928,7.55,226.54,226.42,109.76]
[1757627243126,7.55,226.55,226.42,109.76]
[1757627243426,3.43401274,226.52,226.42,109.76]
[1757627243824,7.55,226.51,226.42,109.76]
[1757627244025,7.55,226.51,226.39,7.15]
[1757627246531,7.55,226.49,226.39,7.15]
[1757627248631,3.43401274,226.48,226.35,7.06]
[1757627248835,7.03,226.47,226.35,7.06]
[1757627251029,7.03,226.47,226.31,109.72]
[1757627251423,12.58,226.47,226.31,109.72]
[1757627251629,7.03,226.46,226.31,109.72]
[1757627252126,3.43401274,226.44,226.31,109.72]
[1757627252527,7.03,226.43,226.31,109.72]
[1757627252733,3.43401274,226.44,226.31,109.72]
[1757627252931,3.43401274,226.44,226.19,296.58]
[1757627252932,7.03,226.39,226.18,3.43401274]
[1757627253231,44.41,226.39,226.19,7.06]
[1757627253432,44.41,226.39,226.19,7.82907777]
[1757627253938,14.11,226.39,226.19,7.82907777]
[1757627254133,7.03,226.39,226.19,7.82907777]
[1757627254437,7.03,226.39,226.23,7.06]
[1757627254632,7.03,226.39,226.26,3.43401274]
[1757627254833,7.03,226.39,226.27,7.06]
[1757627255034,7.03,226.46,226.27,7.06]
[1757627255839,7.03,226.46,226.31,7.06]
[1757627256027,7.03,226.46,226.33,7.06]
[1757627256436,7.03,226.46,226.36,2.20098065]
[1757627256636,7.03,226.46,226.37,7.06]
[1757627258736,2.20098065,226.5,226.37,7.06]
[1757627258938,2.20098065,226.5,226.39,2.20098065]
[1757627258939,7.03,226.5,226.39,2.20098065]
[1757627259135,7.03,226.5,226.4,7.06]
[1757627273146,7.03,226.5,226.4,2.20098065]
[1757627273354,7.03,226.54,226.41,7.06]
[1757627273653,7.03,226.54,226.44,7.06]
[1757627282962,7.03,226.54,226.47,7.03]
[1757627283451,7.03,226.54,226.47,46.95]
[1757627283856,296.66,226.65,226.47,46.95]
[1757627283857,6.91,226.59,226.48,7.03]
[1757627289370,6.91,226.56,226.48,7.03]
[1757627289763,2.20098065,226.57,226.45,71.84]
[1757627290266,6.91,226.56,226.45,71.84]
[1757627290461,2.20098065,226.57,226.45,71.84]
[1757627291870,6.91,226.56,226.45,71.84]
[1757627292269,2.20098065,226.57,226.45,71.84]
[1757627292969,6.91,226.56,226.46,7.03]
[1757627297667,9.11098065,226.56,226.46,7.03]
[1757627299178,6.91,226.52,226.42,7.03]
[1757627307179,6.91,226.52,226.43,7.03]
[1757627308881,6.91,226.52,226.44,7.55]
[1757627311283,2.20098065,226.56,226.44,7.55]
[1757627311586,2.20098065,226.54,226.44,7.55]
[1757627311785,10.47865712,226.53,226.44,7.55]
[1757627312084,7.45,226.51,226.4,7.55]
[1757627313586,9.65098065,226.51,226.4,7.55]
[1757627314682,3.02970096,226.5,226.4,7.55]
[1757627314888,7.45,226.5,226.4,7.55]
[1757627316089,7.45,226.48,226.4,7.55]
[1757627317289,7.45,226.55,226.4,7.55]
[1757627317488,7.45,226.53,226.4,7.55]
[1757627317691,3.03001222,226.52,226.4,7.55]
[1757627317891,3.03001222,226.51,226.4,7.55]
[1757627318186,7.45,226.53,226.4,7.55]
[1757627318388,3.03008663,226.52,226.4,7.55]
[1757627318587,3.03008663,226.51,226.4,7.55]
[1757627318789,7.45,226.53,226.4,7.55]
[1757627318990,3.03008663,226.52,226.4,7.55]
[1757627319288,3.03008663,226.51,226.4,7.55]
[1757627319488,7.45,226.53,226.4,7.55]
[1757627319681,3.02989509,226.52,226.4,7.55]
[1757627319881,7.45,226.5,226.4,7.55]
[1757627326387,7.45,226.59,226.4,7.55]
[1757627326588,7.45,226.57,226.4,7.55]
[1757627326895,7.45,226.55,226.4,7.55]
[1757627327594,7.45,226.55,226.39,3.43814236]
[1757627327595,7.45,226.55,226.42,7.55]
[1757627329199,7.45,226.55,226.44,7.55]
[1757627329395,7.45,226.55,226.46,7.55]
[1757627332000,7.45,226.63,226.46,7.55]
[1757627332201,7.45,226.61,226.46,7.55]
[1757627332399,7.45,226.59,226.46,7.55]
[1757627332598,7.45,226.57,226.46,7.55]
[1757627337799,7.45,226.57,226.48,7.12]
[1757627345505,7.45,226.57,226.49,109.12]
[1757627345704,7.45,226.57,226.5,7.12]
[1757627347106,6.86,226.63,226.5,7.12]
[1757627351802,6.86,226.63,226.52,7.12]
[1757627354610,6.86,226.63,226.53,62.0]
[1757627354814,6.86,226.63,226.54,7.12]
[1757627361618,6.86,226.63,226.56,7.12]
[1757627364022,6.86,226.75,226.56,7.12]
[1757627364320,6.86,226.73,226.56,7.12]
[1757627365126,6.86,226.73,226.57,296.4]
[1757627365421,6.86,226.75,226.58,7.12]
[1757627367323,6.86,226.75,226.6,7.12]
[1757627367724,7.12,226.75,226.61,7.36]
[1757627367924,7.12,226.75,226.63,7.36]
[1757627370128,7.12,226.75,226.63,69.36]
[1757627370317,3.43814236,226.8,226.63,62.0]
[1757627370524,7.12,226.79,226.64,7.36]
[1757627371518,3.43814236,226.8,226.65,101.72]
[1757627371725,7.12,226.79,226.66,7.36]
[1757627374722,7.12,226.8,226.68,7.36]
[1757627378021,7.12,226.8,226.68,7.36]
[1757627378325,7.12,226.8,226.7,2.19401199]
[1757627378519,7.12,226.8,226.71,7.36]
[1757627379324,7.12,226.8,226.73,7.36]
[1757627380629,7.12,226.83,226.74,7.36]
[1757627381723,7.12,226.83,226.75,13.58]
[1757627381927,7.12,226.83,226.74,7.36]
[1757627382131,7.12,226.83,226.75,11.98]
[1757627382933,7.12,226.83,226.74,7.36]
[1757627383124,7.12,226.83,226.76,7.36]
[1757627385133,7.12,226.83,226.77,14.18]
[1757627385633,7.12,226.83,226.78,7.36]
[1757627385826,7.12,226.83,226.77,14.18]
[1757627386027,7.12,226.86,226.78,7.36]
[1757627392736,7.12,226.9,226.78,7.36]
[1757627392935,7.12,226.9,226.79,2.19401199]
[1757627393238,7.12,226.9,226.8,7.36]
[1757627393429,7.12,226.9,226.82,7.36]
[1757627394029,7.12,226.9,226.83,108.46]
[1757627394731,301.95094626,227.06,226.83,108.46]
[1757627395039,7.12,226.96,226.84,93.56]
[1757627395239,2.19401199,226.97,226.84,93.56]
[1757627395439,7.12,226.96,226.84,93.56]
[1757627395942,7.12,226.96,226.84,7.36]
[1757627396144,2.19401199,226.94,226.85,28.44]
[1757627396335,7.12,226.93,226.82,2.19401199]
[1757627396640,9.31401199,226.93,226.82,2.19401199]
[1757627396942,9.31401199,226.93,226.83,25.5]
[1757627396943,2.19401199,226.93,226.83,25.5]
[1757627397247,7.12,226.92,226.83,25.5]
[1757627397541,6.99,226.92,226.83,25.5]
[1757627397739,2.19401199,226.93,226.83,25.5]
[1757627397940,13.29337236,227.04,226.83,25.5]
[1757627398234,2.19401199,226.93,226.83,25.5]
[1757627398638,6.99,226.92,226.83,25.5]
[1757627399142,2.19401199,226.93,226.83,25.5]
[1757627399338,6.99,226.92,226.83,25.5]
[1757627400037,2.19401199,226.93,226.83,25.5]
[1757627400442,6.99,226.92,226.83,25.5]
[1757627400635,2.19401199,226.93,226.83,25.5]
[1757627400838,6.99,226.92,226.83,25.5]
[1757627401034,2.19401199,226.93,226.83,25.5]
[1757627402042,6.99,226.92,226.83,25.5]
[1757627402245,2.19401199,226.93,226.83,25.5]
[1757627402743,6.99,226.92,226.83,25.5]
[1757627402942,2.19401199,226.93,226.83,25.5]
[1757627403142,6.99,226.92,226.81,2.19401199]
[1757627403336,6.99,226.92,226.8,7.36]
[1757627403541,6.99,226.92,226.74,6.95]
[1757627403847,6.99,226.92,226.8,2.19401199]
[1757627404144,6.99,226.92,226.78,2.19401199]
[1757627407546,6.99,226.9,226.78,2.19401199]
[1757627408748,6.99,226.9,226.78,9.14401199]
[1757627408956,2.19401199,226.91,226.78,9.14401199]
[1757627409146,3.04339977,226.9,226.78,9.14401199]
[1757627409347,2.19401199,226.91,226.78,9.14401199]
[1757627409651,3.04369584,226.9,226.78,9.14401199]
[1757627409851,2.19401199,226.91,226.78,9.14401199]
[1757627410154,3.04369584,226.9,226.78,9.14401199]
[1757627410346,6.99,226.9,226.78,9.14401199]
[1757627410543,6.99,226.9,226.78,6.95]
[1757627410746,6.99,226.9,226.79,2.19401199]
[1757627412753,6.99,226.9,226.8,6.95]
[1757627413149,3.04907421,226.89,226.8,6.95]
[1757627413356,6.99,226.88,226.8,6.95]
[1757627419752,3.08795826,226.87,226.8,6.95]
[1757627419949,6.99,226.9,226.81,2.19401199]
[1757627420155,2.19401199,226.91,226.81,2.19401199]
[1757627420156,6.99,226.88,226.81,2.19401199]
[1757627420450,6.99,226.86,226.81,2.19401199]
[1757627420756,6.99,226.9,226.81,2.19401199]
[1757627420958,6.99,226.88,226.81,2.19401199]
[1757627421157,6.99,226.86,226.81,2.19401199]
[1757627421356,6.99,226.9,226.81,2.19401199]
[1757627421559,6.99,226.88,226.81,2.19401199]
[1757627421859,3.09042248,226.87,226.81,2.19401199]
[1757627422153,3.09190122,226.86,226.82,0.02965549]
[1757627422358,3.0921512,226.85,226.82,0.02965549]
[1757627422553,6.99,226.86,226.82,0.02965549]
[1757627422760,6.99,226.84,226.82,0.02965549]
[1757627422959,6.99,226.86,226.82,0.02965549]
[1757627423160,6.99,226.84,226.82,0.02965549]
[1757627423964,6.99,226.84,226.82,6.97965549]
[1757627434872,7.07,226.86,226.82,0.02965549]
[1757627435079,7.07,226.84,226.82,7.25965549]
[1757627445579,7.07,226.86,226.83,7.23]
[1757627445783,10.16615643,226.85,226.83,7.23]
[1757627445976,3.09615643,226.84,226.83,7.23]
[1757627448689,10.16615643,226.84,226.82,0.02965549]
[1757627448883,3.09615643,226.83,226.82,0.02965549]
[1757627449084,3.09615643,226.83,226.82,7.25965549]
[1757627451688,0.03019821,226.87,226.82,7.25965549]
[1757627451689,0.03019821,226.87,226.82,0.02965549]
[1757627451887,10.17000374,226.86,226.83,7.23]
[1757627452185,3.10000374,226.85,226.83,7.23]
[1757627452385,3.10000374,226.84,226.83,7.23]
[1757627455294,7.07,226.83,226.82,0.02965549]
[1757627455488,10.17000374,226.83,226.82,0.02965549]
[1757627455991,7.07,226.83,226.82,0.02965549]
[1757627456583,7.07,226.86,226.83,7.23]
[1757627456785,0.03019821,226.87,226.82,0.02965549]
[1757627456786,7.07,226.84,226.82,0.02965549]
[1757627457090,0.03019821,226.87,226.82,0.02965549]
[1757627457387,7.07,226.85,226.82,0.02965549]
[1757627457587,7.43,226.83,226.82,0.02965549]
[1757627457784,10.53039958,226.83,226.82,0.02965549]
[1757627459190,7.43,226.83,226.82,0.02965549]
[1757627460293,10.53078933,226.83,226.82,0.02965549]
[1757627462189,13.93726733,226.83,226.72,7.45]
[1757627462492,7.43,226.81,226.72,7.45]
[1757627462691,3.10078933,226.8,226.72,7.45]
[1757627462894,7.43,226.81,226.72,7.45]
[1757627463094,3.10113886,226.8,226.72,7.45]
[1757627463290,0.03232229,226.79,226.72,7.45]
[1757627463492,7.46232229,226.79,226.72,7.45]
[1757627470104,0.03232229,226.79,226.7,115.81]
[1757627470495,7.43,226.78,226.7,115.81]
[1757627470702,7.43,226.78,226.7,108.36]
[1757627470901,7.43,226.78,226.71,7.45]
[1757627500337,0.03232229,226.79,226.73,2.19413939]
[1757627500733,7.06,226.78,226.73,2.19413939]
[1757627501132,0.03232229,226.79,226.73,2.19413939]
[1757627501637,7.06,226.78,226.73,2.19413939]
[1757627501838,0.03232229,226.79,226.73,9.49413939]
[1757627502037,7.06,226.78,226.73,9.49413939]
[1757627502234,0.03232229,226.79,226.73,9.49413939]
[1757627502637,7.06,226.78,226.73,9.49413939]
[1757627502832,0.03232229,226.79,226.73,9.49413939]
[1757627503239,7.06,226.78,226.73,9.49413939]
[1757627503538,0.03232229,226.79,226.73,9.49413939]
[1757627503539,0.03232229,226.79,226.73,2.19413939]
[1757627503735,0.03232229,226.79,226.61,7.34300234]
[1757627503736,2.19413939,226.75,226.61,7.34300234]
[1757627503936,7.06,226.71,226.59,7.3]
[1757627504135,7.06,226.79,226.67,2.19413939]
[1757627504340,7.06,226.77,226.67,2.19413939]
[1757627504532,7.06,226.75,226.65,7.3]
[1757627504733,7.06,226.73,226.65,7.3]
[1757627504939,7.06,226.71,226.65,7.3]
[1757627505537,0.02824297,226.7,226.65,7.3]
[1757627505738,7.06,226.69,226.65,7.3]
[1757627505937,0.02824297,226.7,226.65,7.3]
[1757627506235,7.06,226.69,226.65,7.3]
[1757627506638,0.02824297,226.7,226.65,7.3]
[1757627506944,7.06,226.69,226.65,7.3]
[1757627507348,0.02824297,226.7,226.65,7.3]
[1757627507740,7.06,226.69,226.65,7.3]
[1757627508137,0.02824297,226.7,226.65,7.3]
[1757627509045,7.06,226.69,226.65,7.3]
[1757627509246,0.02824297,226.7,226.65,7.3]
[1757627509440,7.06,226.69,226.65,7.3]
[1757627509845,0.02824297,226.7,226.65,7.3]
[1757627510942,7.06,226.69,226.65,7.3]
[1757627511147,0.02824297,226.7,226.65,7.3]
[1757627511347,7.06,226.69,226.65,7.3]
[1757627511548,0.02824297,226.7,226.65,7.3]
[1757627511949,7.06,226.69,226.65,7.3]
[1757627512146,0.02824297,226.7,226.65,7.3]
[1757627512948,7.06,226.69,226.65,7.3]
[1757627513347,7.08824297,226.7,226.64,9.49413939]
[1757627525756,7.02,226.69,226.56,7.14]
[1757627526061,7.02,226.67,226.58,2.19413939]
[1757627526359,0.03016744,226.65,226.58,2.19413939]
[1757627526559,7.02,226.64,226.58,9.33413939]
[1757627530263,0.03016744,226.65,226.58,9.33413939]
[1757627530464,7.02,226.64,226.58,9.33413939]
[1757627530763,0.03016744,226.65,226.58,9.33413939]
[1757627531062,7.02,226.64,226.58,9.33413939]
[1757627531264,2.19413939,226.62,226.5,46.7641677]
[1757627531455,7.02,226.58,226.47,7.14]
[1757627531853,0.02904121,226.55,226.47,7.14]
[1757627532058,7.02,226.54,226.47,7.14]
[1757627532259,7.02,226.54,226.48,2.19413939]
[1757627536069,7.02,226.54,226.49,7.14]
[1757627536268,0.02904121,226.55,226.52,7.14]
[1757627536569,0.02904121,226.55,226.44,7.14]
[1757627536868,0.02904121,226.55,226.54,7.14]
[1757627537272,7.02,226.62,226.54,7.58]
[1757627537464,7.02,226.62,226.52,0.03053101]
[1757627537465,7.02,226.62,226.57,2.19413939]
[1757627538168,7.02,226.62,226.58,7.14]
[1757627538771,7.02,226.62,226.57,2.19413939]
[1757627539472,7.02,226.62,226.58,7.14]
[1757627540164,7.02,226.62,226.57,2.19413939]
[1757627540364,7.02,226.62,226.58,7.14]
[1757627542876,7.02,226.62,226.57,2.19413939]
[1757627543573,7.02,226.62,226.58,7.14]
[1757627544677,7.02,226.68,226.56,7.14]
[1757627557489,2.19413939,226.7,226.56,2.19413939]
[1757627557689,14.09293041,226.69,226.57,7.41]
[1757627557886,7.42,226.69,226.57,7.41]
[1757627559294,7.42,226.67,226.57,7.41]
[1757627568198,3.087236,226.66,226.57,7.41]
[1757627568399,7.42,226.72,226.57,7.41]
[1757627568699,7.42,226.7,226.57,7.41]
[1757627568898,7.42,226.68,226.57,7.41]
[1757627569200,7.42,226.66,226.57,7.41]
[1757627580305,3.09567836,226.65,226.57,7.41]
[1757627580505,7.42,226.66,226.57,7.41]
[1757627580704,3.09567853,226.65,226.57,7.41]
[1757627580904,7.42,226.66,226.57,7.41]
[1757627581105,6.70960462,226.65,226.57,7.41]
[1757627581406,7.42,226.66,226.57,7.41]
[1757627581597,15.22,226.74,226.54,7.33]
[1757627581598,6.92,226.64,226.54,7.33]
[1757627581802,6.92,226.62,226.54,7.33]
[1757627582105,7.38579061,226.73,226.5,40.42300234]
[1757627582106,6.92,226.6,226.51,7.33]
[1757627582609,6.92,226.58,226.51,7.33]
[1757627608218,7.36,226.67,226.51,7.33]
[1757627608420,10.05208587,226.66,226.53,3.43295497]
[1757627608721,323.0,226.97,226.53,3.43295497]
[1757627608722,7.36,226.78,226.62,7.24]
[1757627608916,7.36,226.76,226.64,7.24]
[1757627609116,7.36,226.74,226.64,7.24]
[1757627609314,6.58449031,226.73,226.64,7.24]
[1757627609514,7.36,226.74,226.64,7.24]
[1757627609919,0.02833891,226.71,226.64,7.24]
[1757627620526,0.02833891,226.71,226.64,9.43569197]
[1757627620728,0.02833891,226.71,226.65,7.24]
[1757627621829,0.02833891,226.71,226.67,2.19569197]
[1757627622029,7.36,226.78,226.68,7.24]
[1757627623229,7.36,226.78,226.71,0.02956085]
[1757627623431,7.36,226.78,226.71,7.26956085]
[1757627626632,7.36,226.78,226.71,0.02956085]
[1757627634537,7.36,226.78,226.72,7.24]
[1757627641048,6.83,226.81,226.73,7.53]
[1757627645448,6.83,226.81,226.75,2.19569197]
[1757627646048,6.83,226.81,226.76,0.02878128]
[1757627646345,6.83,226.85,226.77,7.53]
[1757627646543,6.83,226.85,226.76,0.02878128]
[1757627646544,6.83,226.95,226.79,7.53]
[1757627646750,2.19569197,226.92,226.82,2.19569197]
[1757627647044,9.02569197,226.95,226.86,7.53]
[1757627647550,6.83,226.93,226.85,0.03371517]
[1757627651048,6.83,226.93,226.86,7.53]
[1757627656352,6.83,226.93,226.86,9.72569197]
[1757627661952,6.83,226.88,226.77,2.19569197]
[1757627662752,6.83,226.85,226.74,2.19569197]
[1757627663160,2.19569197,226.82,226.72,7.53]
[1757627663356,6.83,226.81,226.72,7.53]
[1757627663856,0.03386758,226.79,226.72,7.53]
[1757627670560,7.42386758,226.79,226.72,7.53]
[1757627676568,7.42386758,226.79,226.72,9.72569197]
[1757627680374,7.42386758,226.79,226.72,7.53]
[1757627687770,7.42386758,226.79,226.69,7.02]
[1757627690980,7.42386758,226.79,226.7,7.02]
[1757627693172,0.03386758,226.79,226.7,7.02]
[1757627696079,0.03386758,226.79,226.73,7.02]
[1757627696475,7.39,226.83,226.73,7.02]
[1757627696676,0.03281329,226.78,226.75,7.02]
[1757627697571,0.03281329,226.78,226.75,7.54]
[1757627699080,0.03281329,226.78,226.74,76.66]
[1757627700484,0.03281329,226.78,226.75,7.54]
[1757627701378,0.03281329,226.78,226.74,76.66]
[1757627702082,0.03281329,226.78,226.75,7.54]
[1757627702385,0.03281329,226.78,226.74,76.66]
[1757627702682,0.03281329,226.78,226.75,7.54]
[1757627702881,0.03281329,226.78,226.77,7.54]
[1757627703286,0.03281329,226.78,226.77,7.98]
[1757627704184,0.03281329,226.78,226.73,4.89832014]
[1757627704386,0.03281329,226.78,226.58,12.24876437]
[1757627704387,0.03281329,226.78,226.74,7.54]
[1757627704585,7.48,226.77,226.74,7.54]
[1757627704982,0.03393915,226.78,226.73,7.54]
[1757627705288,7.48,226.8,226.72,113.85832014]
[1757627705588,0.02848644,226.78,226.72,113.85832014]
[1757627705789,0.02848644,226.78,226.73,4.89832014]
[1757627705989,0.02848644,226.78,226.74,7.54]
[1757627706589,0.02848644,226.78,226.75,7.54]
[1757627708585,0.02848644,226.78,226.74,4.89832014]
[1757627709292,0.02848644,226.78,226.75,7.54]
[1757627709691,0.02848644,226.78,226.74,113.83832014]
[1757627709994,7.48,226.77,226.75,7.54]
[1757627710192,0.02848644,226.78,226.74,113.83832014]
[1757627710394,0.02848644,226.78,226.75,7.54]
[1757627711094,0.02848644,226.78,226.74,113.77832014]
[1757627711688,0.02848644,226.78,226.75,7.54]
[1757627712092,0.02848644,226.78,226.74,113.77832014]
[1757627713086,0.02848644,226.78,226.75,7.54]
[1757627713291,0.02848644,226.78,226.74,113.77832014]
[1757627713487,0.02848644,226.78,226.75,7.54]
[1757627713685,0.02848644,226.78,226.74,113.77832014]
[1757627714193,0.02848644,226.78,226.75,7.54]
[1757627714394,0.02848644,226.78,226.74,108.88]
[1757627714596,0.02848644,226.78,226.75,7.54]
[1757627715504,0.02848644,226.78,226.74,108.88]
[1757627715687,0.02848644,226.78,226.74,108.74]
[1757627716290,7.48,226.77,226.74,108.74]
[1757627716493,0.02848644,226.78,226.74,108.74]